[Event "*** Titled Tuesday Blitz"]
[Site "Chess.com"]
[Date "2018.05.01"]
[Round "9"]
[White "Shtembuliak"]
[Black "vugarrasulov"]
[Result "1-0"]
[WhiteElo "2696"]
[BlackElo "2727"]
[TimeControl "180+2"]
[EndTime "14:58:39 PDT"]
[Termination "Shtembuliak won by resignation"]

1. Nf3 {[%clk 0:03:01.9]} 1... Nf6 {[%clk 0:03:00.8]} 2. c4 {[%clk 0:03:01.9]}
2... b6 {[%clk 0:03:02.2]} 3. g3 {[%clk 0:03:02.3]} 3... Bb7 {[%clk 0:03:03.4]}
4. Bg2 {[%clk 0:03:03.9]} 4... c5 {[%clk 0:03:04.5]} 5. O-O {[%clk 0:03:04.2]}
5... e6 {[%clk 0:03:05.7]} 6. Nc3 {[%clk 0:03:05.6]} 6... Be7 {[%clk 0:03:06.6]}
7. d4 {[%clk 0:03:06.4]} 7... cxd4 {[%clk 0:03:07.5]} 8. Qxd4 {[%clk 0:03:07.8]}
8... O-O {[%clk 0:03:08]} 9. Rd1 {[%clk 0:03:08]} 9... a6 {[%clk 0:03:05.1]} 10.
Bf4 {[%clk 0:03:01.3]} 10... d5 {[%clk 0:02:59]} 11. cxd5 {[%clk 0:02:56.5]}
11... Nxd5 {[%clk 0:02:55.2]} 12. Nxd5 {[%clk 0:02:53.8]} 12... Bxd5 {[%clk
0:02:56.6]} 13. Ne5 {[%clk 0:02:40.1]} 13... Bxg2 {[%clk 0:02:47.1]} 14. Qxd8
{[%clk 0:02:39.9]} 14... Bxd8 {[%clk 0:02:42.5]} 15. Kxg2 {[%clk 0:02:40.2]}
15... Bf6 {[%clk 0:02:43.4]} 16. h4 {[%clk 0:02:13.6]} 16... Bxe5 {[%clk
0:02:33]} 17. Bxe5 {[%clk 0:02:15.5]} 17... Nc6 {[%clk 0:02:34.4]} 18. Bc7
{[%clk 0:02:16.3]} 18... b5 {[%clk 0:02:27]} 19. Rac1 {[%clk 0:02:16.1]} 19...
Ne7 {[%clk 0:02:16.7]} 20. e4 {[%clk 0:02:11.9]} 20... Rfc8 {[%clk 0:02:12.1]}
21. h5 {[%clk 0:02:02.6]} 21... f6 {[%clk 0:02:12.8]} 22. Rd7 {[%clk 0:01:42.2]}
22... Kf7 {[%clk 0:02:13]} 23. Bf4 {[%clk 0:01:43]} 23... e5 {[%clk 0:02:07.8]}
24. Be3 {[%clk 0:01:37.6]} 24... Rxc1 {[%clk 0:02:04.5]} 25. Bxc1 {[%clk
0:01:39.4]} 25... Ke6 {[%clk 0:02:02.3]} 26. Rb7 {[%clk 0:01:35.2]} 26... Rc8
{[%clk 0:02:00.2]} 27. Bd2 {[%clk 0:01:36.5]} 27... g6 {[%clk 0:02:01]} 28. h6
{[%clk 0:01:32.7]} 28... Rc4 {[%clk 0:01:47.8]} 29. Kf3 {[%clk 0:01:22.3]} 29...
f5 {[%clk 0:01:49.1]} 30. Bg5 {[%clk 0:01:15.9]} 30... fxe4+ {[%clk 0:01:49]}
31. Kg2 {[%clk 0:01:17]} 31... Nf5 {[%clk 0:01:47]} 32. Rxh7 {[%clk 0:01:16.9]}
32... Rc2 {[%clk 0:01:47]} 33. g4 {[%clk 0:01:14.5]} 33... Nd6 {[%clk
0:01:28.9]} 34. Re7+ {[%clk 0:01:13.6]} 34... Kd5 {[%clk 0:01:30.3]} 35. h7
{[%clk 0:01:08.2]} 35... e3 {[%clk 0:01:29.5]} 36. h8=Q {[%clk 0:01:05.5]} 1-0

[Event "*** Titled Tuesday Blitz"]
[Site "Chess.com"]
[Date "2018.05.01"]
[Round "9"]
[White "Jbd735"]
[Black "evgenysharapov"]
[Result "1-0"]
[WhiteElo "2359"]
[BlackElo "2285"]
[TimeControl "180+2"]
[EndTime "14:58:42 PDT"]
[Termination "Jbd735 won by resignation"]

1. e4 {[%clk 0:03:01.9]} 1... c5 {[%clk 0:03:00.5]} 2. Nf3 {[%clk 0:03:02.2]}
2... d6 {[%clk 0:03:01.4]} 3. d4 {[%clk 0:03:02.8]} 3... cxd4 {[%clk 0:03:01.9]}
4. Nxd4 {[%clk 0:03:04.7]} 4... Nf6 {[%clk 0:03:02.6]} 5. Nc3 {[%clk 0:03:05.3]}
5... Nc6 {[%clk 0:03:02.1]} 6. Bc4 {[%clk 0:03:01.7]} 6... Qb6 {[%clk
0:03:02.2]} 7. Nb3 {[%clk 0:02:53.8]} 7... e6 {[%clk 0:03:02.6]} 8. O-O {[%clk
0:02:51.8]} 8... Be7 {[%clk 0:03:03]} 9. Be3 {[%clk 0:02:50.3]} 9... Qc7 {[%clk
0:03:03.4]} 10. f4 {[%clk 0:02:30.1]} 10... O-O {[%clk 0:03:01.5]} 11. a3 {[%clk
0:01:59.8]} 11... a6 {[%clk 0:03:01.8]} 12. Bd3 {[%clk 0:01:47.9]} 12... b5
{[%clk 0:03:02.1]} 13. Qf3 {[%clk 0:01:41.4]} 13... Bb7 {[%clk 0:03:01.7]} 14.
Qh3 {[%clk 0:01:14.8]} 14... b4 {[%clk 0:03:01.9]} 15. axb4 {[%clk 0:00:59.9]}
15... Nxb4 {[%clk 0:03:01.9]} 16. e5 {[%clk 0:00:53.7]} 16... dxe5 {[%clk
0:03:00.1]} 17. fxe5 {[%clk 0:00:54.3]} 17... Qxe5 {[%clk 0:02:55.2]} 18. Ra5
{[%clk 0:00:31.2]} 18... Qc7 {[%clk 0:02:52.7]} 19. Bxh7+ {[%clk 0:00:27.4]}
19... Nxh7 {[%clk 0:02:50.7]} 20. Rh5 {[%clk 0:00:26.6]} 20... Bxg2 {[%clk
0:02:05.6]} 21. Kxg2 {[%clk 0:00:21.9]} 21... Qb7+ {[%clk 0:01:56.5]} 22. Kg1
{[%clk 0:00:21]} 22... Bf6 {[%clk 0:01:45.9]} 23. Rxh7 {[%clk 0:00:20.2]} 23...
g6 {[%clk 0:01:46.6]} 24. Rxf6 {[%clk 0:00:20.4]} 24... Nxc2 {[%clk 0:01:42]}
25. Bg5 {[%clk 0:00:18.4]} 1-0

[Event "*** Titled Tuesday Blitz"]
[Site "Chess.com"]
[Date "2018.05.01"]
[Round "9"]
[White "Caterpiller35"]
[Black "XiaoKangZhong"]
[Result "1-0"]
[WhiteElo "2236"]
[BlackElo "2199"]
[TimeControl "180+2"]
[EndTime "14:59:06 PDT"]
[Termination "Caterpiller35 won by checkmate"]

1. d4 {[%clk 0:03:01.9]} 1... Nf6 {[%clk 0:03:00.2]} 2. Bf4 {[%clk 0:03:02.5]}
2... g6 {[%clk 0:02:59.3]} 3. Nc3 {[%clk 0:03:01.9]} 3... d5 {[%clk 0:02:59.9]}
4. e3 {[%clk 0:02:56.6]} 4... Bg7 {[%clk 0:02:58.4]} 5. h4 {[%clk 0:02:56.3]}
5... h5 {[%clk 0:02:57.8]} 6. Nf3 {[%clk 0:02:53.7]} 6... O-O {[%clk 0:02:56.5]}
7. Ne5 {[%clk 0:02:48.7]} 7... Nbd7 {[%clk 0:02:54]} 8. Be2 {[%clk 0:02:47.4]}
8... Nxe5 {[%clk 0:02:51.1]} 9. dxe5 {[%clk 0:02:47.7]} 9... Nd7 {[%clk
0:02:42.9]} 10. Qxd5 {[%clk 0:02:42.9]} 10... c6 {[%clk 0:02:42.3]} 11. Qe4
{[%clk 0:02:41.9]} 11... Qa5 {[%clk 0:02:37.1]} 12. g4 {[%clk 0:01:49.7]} 12...
hxg4 {[%clk 0:02:33.6]} 13. h5 {[%clk 0:01:49.9]} 13... Nxe5 {[%clk 0:02:25]}
14. hxg6 {[%clk 0:00:37.4]} 14... f5 {[%clk 0:02:22.4]} 15. Qg2 {[%clk
0:00:13.1]} 15... Nxg6 {[%clk 0:02:20.3]} 16. O-O-O {[%clk 0:00:08]} 16... Nxf4
{[%clk 0:02:12.8]} 17. exf4 {[%clk 0:00:08]} 17... Bxc3 {[%clk 0:02:13.3]} 18.
Bc4+ {[%clk 0:00:07]} 18... e6 {[%clk 0:02:13.4]} 19. bxc3 {[%clk 0:00:06.7]}
19... Qxc3 {[%clk 0:02:14.1]} 20. Bb3 {[%clk 0:00:07.8]} 20... Qa1+ {[%clk
0:02:12.7]} 21. Kd2 {[%clk 0:00:08.3]} 21... Qg7 {[%clk 0:02:13.6]} 22. Rh5
{[%clk 0:00:06.3]} 22... Bd7 {[%clk 0:02:11.3]} 23. Rg5 {[%clk 0:00:06.6]} 23...
Rad8 {[%clk 0:02:11.1]} 24. Ke1 {[%clk 0:00:07.7]} 24... Bc8 {[%clk 0:02:11.1]}
25. Rxd8 {[%clk 0:00:07.6]} 25... Rxd8 {[%clk 0:02:12]} 26. Qh2 {[%clk
0:00:08.1]} 26... Qxg5 {[%clk 0:02:09.1]} 27. fxg5 {[%clk 0:00:08.7]} 27... Kf7
{[%clk 0:02:10.4]} 28. Qc7+ {[%clk 0:00:09.3]} 28... Rd7 {[%clk 0:02:07.6]} 29.
Qxc8 {[%clk 0:00:10.1]} 29... Re7 {[%clk 0:02:08.9]} 30. Qd8 {[%clk 0:00:09.9]}
30... Re8 {[%clk 0:02:09.4]} 31. Qd7+ {[%clk 0:00:09.4]} 31... Re7 {[%clk
0:02:10.4]} 32. g6+ {[%clk 0:00:10.6]} 32... Kf6 {[%clk 0:02:11]} 33. Qd8 {[%clk
0:00:11.1]} 33... e5 {[%clk 0:02:10.9]} 34. g7 {[%clk 0:00:12.2]} 34... f4
{[%clk 0:02:10.5]} 35. g8=Q {[%clk 0:00:09.7]} 35... g3 {[%clk 0:02:11.7]} 36.
Qf7+ {[%clk 0:00:10.5]} 36... Kg5 {[%clk 0:02:11.9]} 37. Qdxe7+ {[%clk
0:00:11.8]} 37... Kh6 {[%clk 0:02:13.2]} 38. Qef6# {[%clk 0:00:12.3]} 1-0

[Event "*** Titled Tuesday Blitz"]
[Site "Chess.com"]
[Date "2018.05.01"]
[Round "9"]
[White "pulvettd"]
[Black "Alohamora11"]
[Result "0-1"]
[WhiteElo "2372"]
[BlackElo "2135"]
[TimeControl "180+2"]
[EndTime "14:59:26 PDT"]
[Termination "Alohamora11 won on time"]

1. e4 {[%clk 0:02:59.3]} 1... c5 {[%clk 0:02:59.3]} 2. Nf3 {[%clk 0:02:57.4]}
2... g6 {[%clk 0:02:59.8]} 3. Bc4 {[%clk 0:02:56.1]} 3... Bg7 {[%clk 0:03:00]}
4. Nc3 {[%clk 0:02:50.9]} 4... e6 {[%clk 0:03:01.2]} 5. d4 {[%clk 0:02:50.6]}
5... cxd4 {[%clk 0:03:00.5]} 6. Nxd4 {[%clk 0:02:13.9]} 6... a6 {[%clk
0:03:00.2]} 7. O-O {[%clk 0:02:10.8]} 7... Ne7 {[%clk 0:02:57.1]} 8. a4 {[%clk
0:01:57.3]} 8... Nbc6 {[%clk 0:02:56.1]} 9. Nf3 {[%clk 0:01:43]} 9... d6 {[%clk
0:02:39.1]} 10. Be3 {[%clk 0:01:36.8]} 10... O-O {[%clk 0:02:37.6]} 11. Qd2
{[%clk 0:01:37.6]} 11... Ne5 {[%clk 0:02:22.3]} 12. Be2 {[%clk 0:01:32.4]} 12...
Qc7 {[%clk 0:02:17.5]} 13. Rfd1 {[%clk 0:01:29.8]} 13... Rd8 {[%clk 0:02:05.9]}
14. a5 {[%clk 0:01:30.6]} 14... Nc4 {[%clk 0:02:03.5]} 15. Bxc4 {[%clk 0:01:30]}
15... Qxc4 {[%clk 0:02:05.4]} 16. Bb6 {[%clk 0:00:46]} 16... Rd7 {[%clk
0:02:06.1]} 17. Bd4 {[%clk 0:00:43.5]} 17... Nc6 {[%clk 0:01:59.3]} 18. Bxg7
{[%clk 0:00:43.1]} 18... Kxg7 {[%clk 0:02:01.2]} 19. b3 {[%clk 0:00:39.2]} 19...
Qc5 {[%clk 0:01:58.1]} 20. Ra4 {[%clk 0:00:31.5]} 20... Ne5 {[%clk 0:01:54.2]}
21. Nxe5 {[%clk 0:00:27.1]} 21... dxe5 {[%clk 0:01:56.1]} 22. Qe1 {[%clk
0:00:22.5]} 22... Rxd1 {[%clk 0:01:50.3]} 23. Nxd1 {[%clk 0:00:23]} 23... Qc7
{[%clk 0:01:52]} 24. c4 {[%clk 0:00:15.1]} 24... Bd7 {[%clk 0:01:51.6]} 25. Ra2
{[%clk 0:00:15.8]} 25... Bc6 {[%clk 0:01:52.7]} 26. Nc3 {[%clk 0:00:12.4]} 26...
Rd8 {[%clk 0:01:53.8]} 27. h3 {[%clk 0:00:09.9]} 27... Rd3 {[%clk 0:01:51.2]}
28. Nd1 {[%clk 0:00:06.1]} 28... Rxb3 {[%clk 0:01:49.8]} 0-1

[Event "*** Titled Tuesday Blitz"]
[Site "Chess.com"]
[Date "2018.05.01"]
[Round "9"]
[White "Orest_Vovk"]
[Black "juniortay"]
[Result "1-0"]
[WhiteElo "2469"]
[BlackElo "2362"]
[TimeControl "180+2"]
[EndTime "14:59:38 PDT"]
[Termination "Orest_Vovk won by resignation"]

1. g4 {[%clk 0:03:01.9]} 1... d5 {[%clk 0:02:57.8]} 2. h3 {[%clk 0:02:53.9]}
2... e5 {[%clk 0:02:57.9]} 3. Bg2 {[%clk 0:02:54.8]} 3... Nc6 {[%clk 0:02:54.9]}
4. c4 {[%clk 0:02:55.2]} 4... Nge7 {[%clk 0:02:49.7]} 5. cxd5 {[%clk 0:02:52.1]}
5... Nxd5 {[%clk 0:02:50.1]} 6. Nc3 {[%clk 0:02:53.4]} 6... Nb6 {[%clk
0:02:51.3]} 7. d3 {[%clk 0:02:52.9]} 7... Be7 {[%clk 0:02:52.3]} 8. Nf3 {[%clk
0:02:51.1]} 8... O-O {[%clk 0:02:53]} 9. Bd2 {[%clk 0:02:49.6]} 9... Be6 {[%clk
0:02:52.7]} 10. Rc1 {[%clk 0:02:47.8]} 10... f6 {[%clk 0:02:49]} 11. b3 {[%clk
0:02:46.7]} 11... Qd7 {[%clk 0:02:28.8]} 12. Ne4 {[%clk 0:02:46.1]} 12... a5
{[%clk 0:02:22.8]} 13. Nc5 {[%clk 0:02:45.6]} 13... Bxc5 {[%clk 0:02:23.3]} 14.
Rxc5 {[%clk 0:02:47.5]} 14... a4 {[%clk 0:02:24.9]} 15. O-O {[%clk 0:02:35.9]}
15... axb3 {[%clk 0:02:18.1]} 16. axb3 {[%clk 0:02:37.8]} 16... Ra2 {[%clk
0:02:11.6]} 17. b4 {[%clk 0:02:26.6]} 17... Rd8 {[%clk 0:02:05.6]} 18. Qc1
{[%clk 0:02:18.6]} 18... e4 {[%clk 0:01:33.3]} 19. dxe4 {[%clk 0:01:59.8]} 19...
Rxd2 {[%clk 0:01:28.4]} 20. Nxd2 {[%clk 0:02:01.7]} 20... Qxd2 {[%clk
0:01:29.1]} 21. Qxd2 {[%clk 0:02:03.4]} 21... Rxd2 {[%clk 0:01:30.1]} 22. b5
{[%clk 0:02:04.9]} 22... Nd4 {[%clk 0:01:29.4]} 23. Rxc7 {[%clk 0:02:05]} 23...
Bc4 {[%clk 0:00:41.8]} 24. Rxb7 {[%clk 0:02:00.9]} 24... Na4 {[%clk 0:00:35.9]}
25. Ra1 {[%clk 0:01:52.3]} 25... Bxb5 {[%clk 0:00:21.4]} 26. Rxb5 {[%clk
0:01:46.2]} 26... Nxb5 {[%clk 0:00:23.3]} 27. Rxa4 {[%clk 0:01:46.7]} 27... Rxe2
{[%clk 0:00:24.2]} 28. Bf1 {[%clk 0:01:32.9]} 28... Rb2 {[%clk 0:00:20.9]} 29.
Ra8+ {[%clk 0:01:29.9]} 29... Kf7 {[%clk 0:00:21.7]} 30. Rb8 {[%clk 0:01:30]}
30... Rb4 {[%clk 0:00:14.3]} 31. Rb7+ {[%clk 0:01:27.1]} 31... Kf8 {[%clk
0:00:12]} 32. Rxb5 {[%clk 0:01:26.6]} 32... Rxe4 {[%clk 0:00:13.1]} 33. Kg2
{[%clk 0:01:27.2]} 33... g6 {[%clk 0:00:12.4]} 34. Rb7 {[%clk 0:01:26.6]} 34...
h6 {[%clk 0:00:11.6]} 35. Bd3 {[%clk 0:01:26.8]} 1-0

[Event "*** Titled Tuesday Blitz"]
[Site "Chess.com"]
[Date "2018.05.01"]
[Round "9"]
[White "Synctel"]
[Black "AndrewMcStone"]
[Result "0-1"]
[WhiteElo "1907"]
[BlackElo "2036"]
[TimeControl "180+2"]
[EndTime "14:59:56 PDT"]
[Termination "AndrewMcStone won on time"]

1. e4 {[%clk 0:03:01.9]} 1... Nc6 {[%clk 0:02:59.4]} 2. Nf3 {[%clk 0:02:59.2]}
2... d6 {[%clk 0:03:00.2]} 3. Nc3 {[%clk 0:02:49.4]} 3... Nf6 {[%clk 0:03:00.5]}
4. Bc4 {[%clk 0:02:38.3]} 4... g6 {[%clk 0:03:00.2]} 5. d3 {[%clk 0:02:26.3]}
5... Bg7 {[%clk 0:03:00.9]} 6. a3 {[%clk 0:02:19.4]} 6... O-O {[%clk 0:03:01.9]}
7. O-O {[%clk 0:02:20.2]} 7... Bg4 {[%clk 0:03:02.4]} 8. h3 {[%clk 0:02:21]}
8... Bxf3 {[%clk 0:03:02.9]} 9. Qxf3 {[%clk 0:02:22.9]} 9... Ne5 {[%clk
0:03:04.2]} 10. Qe2 {[%clk 0:02:24]} 10... Nxc4 {[%clk 0:03:05.1]} 11. dxc4
{[%clk 0:02:25.9]} 11... c5 {[%clk 0:03:02.6]} 12. Rd1 {[%clk 0:02:11.5]} 12...
Qd7 {[%clk 0:02:46.3]} 13. e5 {[%clk 0:02:06.1]} 13... Ne8 {[%clk 0:02:35.8]}
14. Bf4 {[%clk 0:02:00.6]} 14... Rd8 {[%clk 0:02:22.4]} 15. Nb5 {[%clk
0:01:23.9]} 15... a6 {[%clk 0:02:12.8]} 16. exd6 {[%clk 0:01:23]} 16... e5
{[%clk 0:02:07.7]} 17. Bxe5 {[%clk 0:00:42.9]} 17... axb5 {[%clk 0:02:07.4]} 18.
Bxg7 {[%clk 0:00:40]} 18... Nxg7 {[%clk 0:02:04.3]} 19. cxb5 {[%clk 0:00:38.8]}
19... Rfe8 {[%clk 0:02:02.8]} 20. Qc4 {[%clk 0:00:37.2]} 20... b6 {[%clk
0:01:49]} 21. Rd5 {[%clk 0:00:25.8]} 21... Re6 {[%clk 0:01:48.7]} 22. Rad1
{[%clk 0:00:25.9]} 22... Nf5 {[%clk 0:01:41.2]} 23. a4 {[%clk 0:00:20.6]} 23...
Rxd6 {[%clk 0:01:29.5]} 24. Rxd6 {[%clk 0:00:16.7]} 24... Nxd6 {[%clk
0:01:31.4]} 25. Qd5 {[%clk 0:00:18]} 25... Qc8 {[%clk 0:00:48.2]} 26. a5 {[%clk
0:00:03.8]} 26... Nb7 {[%clk 0:00:40.2]} 0-1

[Event "*** Titled Tuesday Blitz"]
[Site "Chess.com"]
[Date "2018.05.01"]
[Round "9"]
[White "djano"]
[Black "Bryakin_Mikhail"]
[Result "0-1"]
[WhiteElo "2451"]
[BlackElo "2601"]
[TimeControl "180+2"]
[EndTime "15:00:02 PDT"]
[Termination "Bryakin_Mikhail won by resignation"]

1. e4 {[%clk 0:03:01.9]} 1... c6 {[%clk 0:02:55.8]} 2. d4 {[%clk 0:03:01.9]}
2... d5 {[%clk 0:02:57.7]} 3. e5 {[%clk 0:03:02.8]} 3... Bf5 {[%clk 0:02:58.4]}
4. Nf3 {[%clk 0:03:03.9]} 4... e6 {[%clk 0:02:59.9]} 5. Nbd2 {[%clk 0:03:04.6]}
5... Nd7 {[%clk 0:03:01.4]} 6. Nb3 {[%clk 0:03:05.4]} 6... Bg6 {[%clk
0:03:02.9]} 7. Be2 {[%clk 0:02:54.1]} 7... Nh6 {[%clk 0:03:04.2]} 8. O-O {[%clk
0:02:54]} 8... Nf5 {[%clk 0:03:05.5]} 9. c4 {[%clk 0:02:48.3]} 9... dxc4 {[%clk
0:02:59.2]} 10. Bxc4 {[%clk 0:02:47.8]} 10... Nb6 {[%clk 0:03:01.1]} 11. Bd3
{[%clk 0:02:46]} 11... Nd5 {[%clk 0:03:02.3]} 12. Re1 {[%clk 0:02:32.2]} 12...
Be7 {[%clk 0:03:02.5]} 13. g4 {[%clk 0:02:24.1]} 13... Nh4 {[%clk 0:03:02]} 14.
Nxh4 {[%clk 0:02:25.3]} 14... Bxh4 {[%clk 0:03:02.1]} 15. Nc5 {[%clk 0:02:21.6]}
15... Rb8 {[%clk 0:02:46.9]} 16. Ne4 {[%clk 0:01:55.8]} 16... Bxe4 {[%clk
0:02:44.7]} 17. Rxe4 {[%clk 0:01:50.6]} 17... Bg5 {[%clk 0:02:39.9]} 18. f4
{[%clk 0:01:50.2]} 18... Be7 {[%clk 0:02:41.3]} 19. f5 {[%clk 0:01:48.8]} 19...
Bg5 {[%clk 0:02:40.9]} 20. Bd2 {[%clk 0:01:41]} 20... h6 {[%clk 0:02:34.3]} 21.
Qe2 {[%clk 0:01:35.5]} 21... Qb6 {[%clk 0:02:32.9]} 22. b3 {[%clk 0:01:27.4]}
22... a5 {[%clk 0:02:22.3]} 23. Rf1 {[%clk 0:01:18.9]} 23... Ra8 {[%clk
0:02:01]} 24. Be1 {[%clk 0:01:10.3]} 24... a4 {[%clk 0:01:59.9]} 25. Bc4 {[%clk
0:01:07]} 25... axb3 {[%clk 0:01:57.9]} 26. Bxb3 {[%clk 0:01:07.3]} 26... Qa6
{[%clk 0:01:30.4]} 27. Qf3 {[%clk 0:01:01.3]} 27... Be7 {[%clk 0:01:25.8]} 28.
f6 {[%clk 0:00:39.7]} 28... gxf6 {[%clk 0:01:25.1]} 29. exf6 {[%clk 0:00:39.3]}
29... Bd6 {[%clk 0:01:25.4]} 30. Kh1 {[%clk 0:00:27.2]} 30... Kd7 {[%clk
0:01:22.1]} 31. Re2 {[%clk 0:00:21.5]} 31... Rag8 {[%clk 0:01:22.4]} 32. h3
{[%clk 0:00:20.7]} 32... h5 {[%clk 0:01:23.5]} 33. gxh5 {[%clk 0:00:17.7]} 33...
Rg5 {[%clk 0:01:23.6]} 34. h4 {[%clk 0:00:12.7]} 34... Rgxh5 {[%clk 0:01:24]}
35. Re4 {[%clk 0:00:13.1]} 35... Rf5 {[%clk 0:01:23.7]} 36. Qxf5 {[%clk
0:00:08.3]} 36... exf5 {[%clk 0:01:24.5]} 37. Rxf5 {[%clk 0:00:10]} 37... Qd3
{[%clk 0:01:23.6]} 38. Bc2 {[%clk 0:00:08.7]} 38... Qh3+ {[%clk 0:01:20.1]} 0-1

[Event "*** Titled Tuesday Blitz"]
[Site "Chess.com"]
[Date "2018.05.01"]
[Round "9"]
[White "GoingKronos"]
[Black "FearlessKing64"]
[Result "1-0"]
[WhiteElo "2364"]
[BlackElo "2159"]
[TimeControl "180+2"]
[EndTime "15:00:06 PDT"]
[Termination "GoingKronos won by resignation"]

1. Nf3 {[%clk 0:02:58.8]} 1... c5 {[%clk 0:03:00.1]} 2. e4 {[%clk 0:02:58.7]}
2... d6 {[%clk 0:02:59.6]} 3. Bb5+ {[%clk 0:02:59]} 3... Nd7 {[%clk 0:03:00]} 4.
d4 {[%clk 0:02:57.5]} 4... a6 {[%clk 0:02:57.9]} 5. Bxd7+ {[%clk 0:02:56.4]}
5... Qxd7 {[%clk 0:02:59.7]} 6. Nc3 {[%clk 0:02:52.5]} 6... cxd4 {[%clk
0:02:57.9]} 7. Qxd4 {[%clk 0:02:52.9]} 7... Nf6 {[%clk 0:02:57.2]} 8. Bg5 {[%clk
0:02:52.6]} 8... h6 {[%clk 0:02:26.9]} 9. Bxf6 {[%clk 0:02:51.8]} 9... gxf6
{[%clk 0:02:28.8]} 10. Nd5 {[%clk 0:02:46.7]} 10... Qc6 {[%clk 0:02:04.4]} 11.
O-O-O {[%clk 0:02:40.1]} 11... Be6 {[%clk 0:02:04.5]} 12. Nh4 {[%clk 0:02:22.9]}
12... Rc8 {[%clk 0:02:02.4]} 13. c3 {[%clk 0:02:20.5]} 13... h5 {[%clk
0:01:55.6]} 14. Nf5 {[%clk 0:02:17.3]} 14... b5 {[%clk 0:01:41.1]} 15. Kb1
{[%clk 0:02:14.8]} 15... Qc5 {[%clk 0:01:25.8]} 16. Qd2 {[%clk 0:02:04.7]} 16...
a5 {[%clk 0:01:12.2]} 17. Rhe1 {[%clk 0:01:56.7]} 17... h4 {[%clk 0:01:05.1]}
18. Qe2 {[%clk 0:01:37.9]} 18... b4 {[%clk 0:00:59.2]} 19. cxb4 {[%clk
0:01:36.3]} 19... axb4 {[%clk 0:00:58.3]} 20. Rc1 {[%clk 0:01:35.1]} 20... Qa5
{[%clk 0:00:47.6]} 21. Rxc8+ {[%clk 0:01:23.4]} 21... Bxc8 {[%clk 0:00:47.7]}
22. Qc4 {[%clk 0:01:18.4]} 22... Bd7 {[%clk 0:00:33.1]} 23. Rc1 {[%clk
0:01:09.6]} 23... Bh6 {[%clk 0:00:17.8]} 24. f4 {[%clk 0:01:00.2]} 24... Bxf5
{[%clk 0:00:14.3]} 25. exf5 {[%clk 0:00:58.8]} 25... O-O {[%clk 0:00:14.3]} 26.
Nxe7+ {[%clk 0:00:57.1]} 26... Kh7 {[%clk 0:00:15.1]} 27. g3 {[%clk 0:00:57.1]}
27... h3 {[%clk 0:00:12.3]} 28. Qd5 {[%clk 0:00:42.7]} 28... Kg7 {[%clk
0:00:11]} 29. Qxa5 {[%clk 0:00:42.9]} 1-0

[Event "*** Titled Tuesday Blitz"]
[Site "Chess.com"]
[Date "2018.05.01"]
[Round "9"]
[White "Korchmar_Vasiliy"]
[Black "AnishGiri"]
[Result "0-1"]
[WhiteElo "2725"]
[BlackElo "2859"]
[TimeControl "180+2"]
[EndTime "15:00:26 PDT"]
[Termination "AnishGiri won by resignation"]

1. d4 {[%clk 0:03:00.9]} 1... Nf6 {[%clk 0:03:00.6]} 2. Nf3 {[%clk 0:03:02.2]}
2... d5 {[%clk 0:03:01.2]} 3. Bf4 {[%clk 0:03:03.3]} 3... Bf5 {[%clk 0:02:58]}
4. e3 {[%clk 0:03:01.8]} 4... e6 {[%clk 0:02:59.1]} 5. Nbd2 {[%clk 0:02:52.7]}
5... Be7 {[%clk 0:02:58.3]} 6. Ne5 {[%clk 0:02:49.8]} 6... h6 {[%clk 0:02:49.3]}
7. Be2 {[%clk 0:02:49]} 7... Nbd7 {[%clk 0:02:47.2]} 8. c3 {[%clk 0:02:49.8]}
8... c6 {[%clk 0:02:43.8]} 9. g4 {[%clk 0:02:31.7]} 9... Bh7 {[%clk 0:02:44.1]}
10. h4 {[%clk 0:02:26.7]} 10... Ne4 {[%clk 0:02:18.7]} 11. h5 {[%clk 0:01:59.3]}
11... O-O {[%clk 0:02:16.8]} 12. Nxd7 {[%clk 0:01:39.8]} 12... Qxd7 {[%clk
0:02:18.1]} 13. Nxe4 {[%clk 0:01:39.4]} 13... Bxe4 {[%clk 0:02:19.5]} 14. f3
{[%clk 0:01:40.5]} 14... Bh7 {[%clk 0:02:21]} 15. Bd3 {[%clk 0:01:38.7]} 15...
Bxd3 {[%clk 0:02:17]} 16. Qxd3 {[%clk 0:01:39.6]} 16... c5 {[%clk 0:02:18]} 17.
O-O-O {[%clk 0:01:38.6]} 17... b5 {[%clk 0:02:14.7]} 18. dxc5 {[%clk 0:01:34.2]}
18... Bxc5 {[%clk 0:02:14.6]} 19. g5 {[%clk 0:01:34.4]} 19... hxg5 {[%clk
0:02:15.9]} 20. Bxg5 {[%clk 0:01:35.2]} 20... f6 {[%clk 0:02:17.4]} 21. Bf4
{[%clk 0:01:29.1]} 21... e5 {[%clk 0:02:18.8]} 22. Bg3 {[%clk 0:01:23.1]} 22...
Rad8 {[%clk 0:02:05.6]} 23. h6 {[%clk 0:01:22.9]} 23... g5 {[%clk 0:02:07.1]}
24. Qg6+ {[%clk 0:01:23.9]} 24... Kh8 {[%clk 0:02:08.3]} 25. Rxd5 {[%clk
0:01:25.3]} 25... Bxe3+ {[%clk 0:02:05.7]} 26. Kc2 {[%clk 0:01:05.4]} 26... Qh7
{[%clk 0:02:07.2]} 27. Qxh7+ {[%clk 0:01:03.9]} 27... Kxh7 {[%clk 0:02:09.1]}
28. Rxb5 {[%clk 0:01:00.8]} 28... Rf7 {[%clk 0:02:05.7]} 29. Rh2 {[%clk
0:00:52.7]} 29... Rfd7 {[%clk 0:02:00.2]} 30. Kb3 {[%clk 0:00:39.8]} 30... Kg6
{[%clk 0:01:53]} 31. a4 {[%clk 0:00:28.7]} 31... Rd2 {[%clk 0:01:50.1]} 32. Rh1
{[%clk 0:00:12.8]} 32... Rh8 {[%clk 0:01:32.7]} 33. Bxe5 {[%clk 0:00:06.7]}
33... fxe5 {[%clk 0:01:31.2]} 34. Rxe5 {[%clk 0:00:08.6]} 34... Bf4 {[%clk
0:01:29.9]} 35. Re6+ {[%clk 0:00:09.7]} 35... Kf5 {[%clk 0:01:31.2]} 36. Rc6
{[%clk 0:00:08.4]} 36... Rb8+ {[%clk 0:01:32.4]} 37. Kc4 {[%clk 0:00:08.3]}
37... Rdxb2 {[%clk 0:01:32.8]} 38. h7 {[%clk 0:00:09]} 38... Rh8 {[%clk
0:01:33.4]} 39. Rhh6 {[%clk 0:00:10.2]} 39... Be5 {[%clk 0:01:31.6]} 40. Rc5
{[%clk 0:00:04.5]} 40... Rb7 {[%clk 0:01:29.6]} 41. Ra6 {[%clk 0:00:04]} 41...
Rhxh7 {[%clk 0:01:28]} 42. Raa5 {[%clk 0:00:05.2]} 42... Rbc7 {[%clk 0:01:26.9]}
43. Kd5 {[%clk 0:00:02.8]} 43... Rhd7+ {[%clk 0:01:26.5]} 0-1